[Event "*** Titled Tuesday Blitz"]
[Site "Chess.com"]
[Date "2020.05.05"]
[Round "1"]
[White "yarosavich"]
[Black "FightingChess"]
[Result "1-0"]
[WhiteElo "2726"]
[BlackElo "2376"]
[TimeControl "180+1"]
[EndTime "10:00:57 PDT"]
[Termination "yarosavich won by resignation"]

1. d4 {[%clk 0:02:58.3]} 1... d5 {[%clk 0:02:59.4]} 2. c4 {[%clk 0:02:58.1]}
2... c6 {[%clk 0:03:00.1]} 3. cxd5 {[%clk 0:02:58.1]} 3... cxd5 {[%clk
0:02:59.8]} 4. Nf3 {[%clk 0:02:58.3]} 4... Nf6 {[%clk 0:03:00.4]} 5. Nc3 {[%clk
0:02:57.3]} 5... Nc6 {[%clk 0:03:01]} 6. Bf4 {[%clk 0:02:57.4]} 6... Bf5 {[%clk
0:03:00.6]} 7. e3 {[%clk 0:02:57.8]} 7... e6 {[%clk 0:03:00.8]} 8. Qb3 {[%clk
0:02:57.5]} 8... Bb4 {[%clk 0:03:00.6]} 9. Ne5 {[%clk 0:02:55.2]} 9... Rc8
{[%clk 0:02:49.8]} 10. Nxc6 {[%clk 0:02:51.8]} 10... Bxc3+ {[%clk 0:02:48.5]}
11. bxc3 {[%clk 0:02:49.3]} 11... Rxc6 {[%clk 0:02:46.9]} 12. Bb5 {[%clk
0:02:49.1]} 1-0

[Event "*** Titled Tuesday Blitz"]
[Site "Chess.com"]
[Date "2020.05.05"]
[Round "1"]
[White "narutosmith"]
[Black "talman67"]
[Result "1-0"]
[WhiteElo "2270"]
[BlackElo "2568"]
[TimeControl "180+1"]
[EndTime "10:01:54 PDT"]
[Termination "narutosmith won by resignation"]

1. c4 {[%clk 0:03:00.9]} 1... e5 {[%clk 0:02:57.8]} 2. Nc3 {[%clk 0:03:00.9]}
2... Nf6 {[%clk 0:02:57.5]} 3. Nf3 {[%clk 0:03:01.5]} 3... Nc6 {[%clk
0:02:56.7]} 4. d4 {[%clk 0:03:02]} 4... e4 {[%clk 0:02:53]} 5. Nd2 {[%clk
0:03:00.2]} 5... Bb4 {[%clk 0:02:53.3]} 6. e3 {[%clk 0:02:57.4]} 6... d6 {[%clk
0:02:52.6]} 7. Be2 {[%clk 0:02:54.6]} 7... Bxc3 {[%clk 0:02:49]} 8. bxc3 {[%clk
0:02:53.2]} 8... O-O {[%clk 0:02:49.7]} 9. O-O {[%clk 0:02:52.4]} 9... Re8
{[%clk 0:02:38.5]} 10. f3 {[%clk 0:02:51.6]} 10... exf3 {[%clk 0:02:33.3]} 11.
Bxf3 {[%clk 0:02:52.5]} 11... Rxe3 {[%clk 0:02:28.5]} 12. Nb3 {[%clk 0:02:52.4]}
12... Re8 {[%clk 0:02:25.7]} 13. Bg5 {[%clk 0:02:51.3]} 13... h6 {[%clk
0:02:03.5]} 14. Bxf6 {[%clk 0:02:50.6]} 14... Qxf6 {[%clk 0:02:04.4]} 15. Bxc6
{[%clk 0:02:49.6]} 15... Qg6 {[%clk 0:02:02.5]} 16. Bxe8 {[%clk 0:02:48.7]} 1-0

[Event "*** Titled Tuesday Blitz"]
[Site "Chess.com"]
[Date "2020.05.05"]
[Round "1"]
[White "wanyaland"]
[Black "Anna_ChessMate"]
[Result "1-0"]
[WhiteElo "2243"]
[BlackElo "2522"]
[TimeControl "180+1"]
[EndTime "10:02:50 PDT"]
[Termination "wanyaland won by resignation"]

1. d4 {[%clk 0:03:00.2]} 1... Nf6 {[%clk 0:02:58.7]} 2. c4 {[%clk 0:03:00]} 2...
g6 {[%clk 0:02:58]} 3. Nc3 {[%clk 0:02:59.2]} 3... d5 {[%clk 0:02:56.9]} 4. Bf4
{[%clk 0:02:57.6]} 4... Bg7 {[%clk 0:02:50.8]} 5. Rc1 {[%clk 0:02:53.6]} 5...
O-O {[%clk 0:02:46.5]} 6. e3 {[%clk 0:02:47.7]} 6... Nc6 {[%clk 0:02:43.2]} 7.
Be2 {[%clk 0:02:42.9]} 7... Bf5 {[%clk 0:02:41.5]} 8. Nf3 {[%clk 0:02:40.4]}
8... Re8 {[%clk 0:02:40.3]} 9. O-O {[%clk 0:02:38.6]} 9... dxc4 {[%clk 0:02:40]}
10. Bxc4 {[%clk 0:02:37.8]} 10... Ne4 {[%clk 0:02:40.4]} 11. Nxe4 {[%clk
0:02:34.5]} 11... Bxe4 {[%clk 0:02:41.3]} 12. Bxf7+ {[%clk 0:02:33.2]} 12...
Kxf7 {[%clk 0:02:42.2]} 13. Ng5+ {[%clk 0:02:32.8]} 13... Kg8 {[%clk 0:02:43.1]}
14. Nxe4 {[%clk 0:02:33.3]} 14... Qd5 {[%clk 0:02:42.6]} 15. Nc3 {[%clk
0:02:31.9]} 15... Qf7 {[%clk 0:02:42]} 16. Bxc7 {[%clk 0:02:29.8]} 16... Rac8
{[%clk 0:02:36.3]} 17. Bg3 {[%clk 0:02:29]} 17... h5 {[%clk 0:02:34.3]} 18. Qa4
{[%clk 0:02:26.6]} 18... a6 {[%clk 0:02:33.6]} 19. Qb3 {[%clk 0:02:20.2]} 19...
e6 {[%clk 0:02:33.6]} 20. Na4 {[%clk 0:02:15.2]} 20... Kh7 {[%clk 0:02:29.1]}
21. Nc5 {[%clk 0:02:13.4]} 21... Qe7 {[%clk 0:02:29]} 22. Qxb7 {[%clk
0:02:09.7]} 22... Qf8 {[%clk 0:02:22.3]} 23. Ne4 {[%clk 0:02:01.7]} 1-0

[Event "*** Titled Tuesday Blitz"]
[Site "Chess.com"]
[Date "2020.05.05"]
[Round "1"]
[White "ChessQueen"]
[Black "Jaka_Brilej"]
[Result "1-0"]
[WhiteElo "2700"]
[BlackElo "2359"]
[TimeControl "180+1"]
[EndTime "10:03:12 PDT"]
[Termination "ChessQueen won by resignation"]

1. Nf3 {[%clk 0:03:00.5]} 1... f5 {[%clk 0:02:55.3]} 2. d4 {[%clk 0:02:57.4]}
2... Nf6 {[%clk 0:02:55]} 3. g3 {[%clk 0:02:54.8]} 3... g6 {[%clk 0:02:53.6]} 4.
Bg2 {[%clk 0:02:54.3]} 4... Bg7 {[%clk 0:02:50.9]} 5. O-O {[%clk 0:02:54.3]}
5... d6 {[%clk 0:02:50]} 6. c4 {[%clk 0:02:52.5]} 6... O-O {[%clk 0:02:46.5]} 7.
Nc3 {[%clk 0:02:52.3]} 7... c6 {[%clk 0:02:43.9]} 8. d5 {[%clk 0:02:50.7]} 8...
e5 {[%clk 0:02:43.2]} 9. dxe6 {[%clk 0:02:49.2]} 9... Bxe6 {[%clk 0:02:43.4]}
10. Qd3 {[%clk 0:02:40.5]} 10... Na6 {[%clk 0:02:40.6]} 11. Bf4 {[%clk
0:02:29.2]} 11... Ne8 {[%clk 0:02:25]} 12. b3 {[%clk 0:01:44.6]} 12... Nc5
{[%clk 0:02:22.8]} 13. Qd2 {[%clk 0:01:38.2]} 13... Qf6 {[%clk 0:02:06.7]} 14.
Rac1 {[%clk 0:01:37]} 14... Rd8 {[%clk 0:02:06.1]} 15. Bg5 {[%clk 0:01:35.6]}
15... Qf7 {[%clk 0:01:56]} 16. Bxd8 {[%clk 0:01:35.1]} 1-0

[Event "*** Titled Tuesday Blitz"]
[Site "Chess.com"]
[Date "2020.05.05"]
[Round "1"]
[White "Nellichka"]
[Black "Kassimov_B"]
[Result "0-1"]
[WhiteElo "2079"]
[BlackElo "2497"]
[TimeControl "180+1"]
[EndTime "10:03:23 PDT"]
[Termination "Kassimov_B won by resignation"]

1. d4 {[%clk 0:02:57.6]} 1... d6 {[%clk 0:02:59.8]} 2. e4 {[%clk 0:02:53.8]}
2... Nf6 {[%clk 0:02:58.8]} 3. f3 {[%clk 0:02:50.8]} 3... e5 {[%clk 0:02:58.2]}
4. c4 {[%clk 0:02:46.1]} 4... exd4 {[%clk 0:02:54.2]} 5. Qxd4 {[%clk 0:02:42.8]}
5... Nc6 {[%clk 0:02:54.5]} 6. Qd1 {[%clk 0:02:37.3]} 6... g6 {[%clk 0:02:55.4]}
7. Nc3 {[%clk 0:02:33.3]} 7... Bg7 {[%clk 0:02:55]} 8. Bd3 {[%clk 0:02:30.3]}
8... O-O {[%clk 0:02:54.5]} 9. Nge2 {[%clk 0:02:28.1]} 9... Ne5 {[%clk
0:02:40.1]} 10. O-O {[%clk 0:02:25.3]} 10... Be6 {[%clk 0:02:39.5]} 11. Nd5
{[%clk 0:02:18.9]} 11... c6 {[%clk 0:02:37.8]} 12. Ne3 {[%clk 0:02:10.3]} 12...
d5 {[%clk 0:02:24.2]} 13. cxd5 {[%clk 0:01:59.4]} 13... cxd5 {[%clk 0:02:23.8]}
14. Nf4 {[%clk 0:01:45.6]} 14... Nxd3 {[%clk 0:02:17]} 15. Qxd3 {[%clk
0:01:26.8]} 15... dxe4 {[%clk 0:02:16.8]} 16. Bd2 {[%clk 0:01:16.2]} 16... exd3
{[%clk 0:02:16.3]} 0-1

[Event "*** Titled Tuesday Blitz"]
[Site "Chess.com"]
[Date "2020.05.05"]
[Round "1"]
[White "Mikhail_Golubev"]
[Black "Irina_Barchuk"]
[Result "1-0"]
[WhiteElo "2533"]
[BlackElo "2184"]
[TimeControl "180+1"]
[EndTime "10:03:24 PDT"]
[Termination "Mikhail_Golubev won by resignation"]

1. e4 {[%clk 0:03:00.9]} 1... c5 {[%clk 0:02:57]} 2. Nf3 {[%clk 0:03:00.2]} 2...
Nc6 {[%clk 0:02:56.1]} 3. Nc3 {[%clk 0:02:59.1]} 3... g6 {[%clk 0:02:53.4]} 4.
d4 {[%clk 0:02:58.1]} 4... cxd4 {[%clk 0:02:52.6]} 5. Nxd4 {[%clk 0:02:58.2]}
5... Bg7 {[%clk 0:02:51.3]} 6. Be3 {[%clk 0:02:58.4]} 6... Nf6 {[%clk
0:02:50.8]} 7. Nxc6 {[%clk 0:02:58.5]} 7... bxc6 {[%clk 0:02:48.5]} 8. e5 {[%clk
0:02:58.7]} 8... Nd5 {[%clk 0:02:49]} 9. Nxd5 {[%clk 0:02:58.6]} 9... cxd5
{[%clk 0:02:49.9]} 10. Qxd5 {[%clk 0:02:58.6]} 10... Rb8 {[%clk 0:02:50.4]} 11.
O-O-O {[%clk 0:02:58.5]} 11... O-O {[%clk 0:02:40.4]} 12. Bxa7 {[%clk 0:02:40]}
12... e6 {[%clk 0:02:12.2]} 13. Qd4 {[%clk 0:02:00.4]} 13... Qg5+ {[%clk
0:02:03.5]} 14. f4 {[%clk 0:01:58.9]} 14... Bxe5 {[%clk 0:01:45.8]} 15. fxg5
{[%clk 0:01:51]} 15... Bxd4 {[%clk 0:01:45]} 16. Bxb8 {[%clk 0:01:50.8]} 16...
Be3+ {[%clk 0:01:44.1]} 17. Kb1 {[%clk 0:01:50]} 17... Bxg5 {[%clk 0:01:42.6]}
18. Bd6 {[%clk 0:01:49.7]} 18... Re8 {[%clk 0:01:41.1]} 19. a4 {[%clk
0:01:47.4]} 1-0

[Event "*** Titled Tuesday Blitz"]
[Site "Chess.com"]
[Date "2020.05.05"]
[Round "1"]
[White "Poghosyan_Suren"]
[Black "BillCoe"]
[Result "1-0"]
[WhiteElo "2482"]
[BlackElo "2018"]
[TimeControl "180+1"]
[EndTime "10:03:26 PDT"]
[Termination "Poghosyan_Suren won by resignation"]

1. d4 {[%clk 0:02:39.5]} 1... d5 {[%clk 0:02:58.4]} 2. Nf3 {[%clk 0:02:36.8]}
2... e6 {[%clk 0:02:57.9]} 3. c4 {[%clk 0:02:37.7]} 3... Nf6 {[%clk 0:02:58.1]}
4. Nc3 {[%clk 0:02:36.7]} 4... Be7 {[%clk 0:02:58.2]} 5. cxd5 {[%clk 0:02:35.8]}
5... exd5 {[%clk 0:02:57.6]} 6. Bg5 {[%clk 0:02:35.5]} 6... c6 {[%clk
0:02:57.2]} 7. Qc2 {[%clk 0:02:34.4]} 7... g6 {[%clk 0:02:56.6]} 8. Bxf6 {[%clk
0:02:29.5]} 8... Bxf6 {[%clk 0:02:56]} 9. e4 {[%clk 0:02:30]} 9... dxe4 {[%clk
0:02:50.5]} 10. Qxe4+ {[%clk 0:02:29]} 10... Qe7 {[%clk 0:02:47.3]} 11. Bc4
{[%clk 0:02:29.1]} 11... O-O {[%clk 0:02:37.7]} 12. Qxe7 {[%clk 0:02:06.6]}
12... Bxe7 {[%clk 0:02:38.6]} 13. O-O-O {[%clk 0:02:06.4]} 13... Bg4 {[%clk
0:02:36.1]} 14. Rde1 {[%clk 0:01:58.9]} 14... Bb4 {[%clk 0:02:07.9]} 15. Ne5
{[%clk 0:01:57.8]} 15... Bc8 {[%clk 0:01:50.4]} 16. Nxf7 {[%clk 0:01:53.3]}
16... Rxf7 {[%clk 0:01:51.3]} 17. Re8+ {[%clk 0:01:52.6]} 17... Kg7 {[%clk
0:01:48.3]} 18. Rxc8 {[%clk 0:01:39.7]} 1-0

[Event "*** Titled Tuesday Blitz"]
[Site "Chess.com"]
[Date "2020.05.05"]
[Round "1"]
[White "Jumbo"]
[Black "Al_Shima"]
[Result "1-0"]
[WhiteElo "2881"]
[BlackElo "2449"]
[TimeControl "180+1"]
[EndTime "10:03:29 PDT"]
[Termination "Jumbo won by resignation"]

1. d4 {[%clk 0:03:00.9]} 1... b5 {[%clk 0:02:58.8]} 2. e4 {[%clk 0:02:59.3]}
2... Bb7 {[%clk 0:02:58.5]} 3. Nd2 {[%clk 0:02:59.9]} 3... a6 {[%clk 0:02:57.6]}
4. Ngf3 {[%clk 0:02:58.8]} 4... e6 {[%clk 0:02:57.7]} 5. Bd3 {[%clk 0:02:59.1]}
5... Nf6 {[%clk 0:02:57.4]} 6. O-O {[%clk 0:02:58.5]} 6... c5 {[%clk 0:02:53.8]}
7. c3 {[%clk 0:02:58.9]} 7... Be7 {[%clk 0:02:53.1]} 8. Re1 {[%clk 0:02:59.2]}
8... O-O {[%clk 0:02:52.8]} 9. e5 {[%clk 0:02:55.8]} 9... Nd5 {[%clk 0:02:52.4]}
10. Ne4 {[%clk 0:02:56.4]} 10... c4 {[%clk 0:02:47.6]} 11. Bc2 {[%clk
0:02:56.1]} 11... f5 {[%clk 0:02:46.3]} 12. exf6 {[%clk 0:02:49]} 12... Nxf6
{[%clk 0:02:46.2]} 13. Ng3 {[%clk 0:02:42.2]} 13... Bd6 {[%clk 0:02:35]} 14. Bg5
{[%clk 0:02:34.2]} 14... Nc6 {[%clk 0:02:30.8]} 15. d5 {[%clk 0:02:23.7]} 15...
exd5 {[%clk 0:02:27.6]} 16. Bxf6 {[%clk 0:02:23.4]} 16... Qxf6 {[%clk
0:02:27.1]} 17. Qxd5+ {[%clk 0:02:23.7]} 17... Kh8 {[%clk 0:02:26.2]} 18. Ne4
{[%clk 0:02:18.2]} 18... Bxh2+ {[%clk 0:02:03.2]} 19. Nxh2 {[%clk 0:02:09.7]}
19... Qd8 {[%clk 0:01:38.4]} 20. Nd6 {[%clk 0:02:02.3]} 1-0

[Event "*** Titled Tuesday Blitz"]
[Site "Chess.com"]
[Date "2020.05.05"]
[Round "1"]
[White "Parhamov"]
[Black "Rytenko_V"]
[Result "1-0"]
[WhiteElo "3010"]
[BlackElo "2468"]
[TimeControl "180+1"]
[EndTime "10:03:37 PDT"]
[Termination "Parhamov won by resignation"]

1. e4 {[%clk 0:03:00.9]} 1... c5 {[%clk 0:02:55.9]} 2. Nf3 {[%clk 0:02:57.6]}
2... d6 {[%clk 0:02:55.2]} 3. d4 {[%clk 0:02:57]} 3... cxd4 {[%clk 0:02:56.1]}
4. Nxd4 {[%clk 0:02:56.4]} 4... Nf6 {[%clk 0:02:56.5]} 5. Nc3 {[%clk 0:02:56.3]}
5... g6 {[%clk 0:02:56.4]} 6. Bg5 {[%clk 0:02:54.9]} 6... Bg7 {[%clk 0:02:52.9]}
7. Qd2 {[%clk 0:02:53.5]} 7... Nc6 {[%clk 0:02:52.1]} 8. Nb3 {[%clk 0:02:48.6]}
8... Be6 {[%clk 0:02:45]} 9. Be2 {[%clk 0:02:47.7]} 9... O-O {[%clk 0:02:42.8]}
10. O-O {[%clk 0:02:43.7]} 10... Na5 {[%clk 0:02:42.5]} 11. Bh6 {[%clk
0:02:41.9]} 11... Nc4 {[%clk 0:02:42.2]} 12. Bxc4 {[%clk 0:02:38.8]} 12... Bxc4
{[%clk 0:02:43.1]} 13. Rfe1 {[%clk 0:02:38]} 13... Rc8 {[%clk 0:02:39.4]} 14.
Bxg7 {[%clk 0:02:35.5]} 14... Kxg7 {[%clk 0:02:33.8]} 15. h3 {[%clk 0:02:35.1]}
15... Qb6 {[%clk 0:02:31.5]} 16. Re3 {[%clk 0:02:34.5]} 16... Rfd8 {[%clk
0:02:28.1]} 17. Rae1 {[%clk 0:02:33.6]} 17... e5 {[%clk 0:02:26.7]} 18. Rf3
{[%clk 0:02:32.1]} 18... Qc6 {[%clk 0:01:45.7]} 19. Qg5 {[%clk 0:02:24.7]} 19...
Ne8 {[%clk 0:01:44]} 20. Na5 {[%clk 0:02:22.5]} 20... Qc7 {[%clk 0:01:39.6]} 21.
Nxc4 {[%clk 0:02:22]} 21... Qxc4 {[%clk 0:01:40.5]} 22. Nd5 {[%clk 0:02:21.7]}
22... Qxc2 {[%clk 0:01:32.5]} 23. Qe7 {[%clk 0:02:20.6]} 23... Kh8 {[%clk
0:01:15.1]} 24. Rxf7 {[%clk 0:02:20.3]} 1-0

[Event "*** Titled Tuesday Blitz"]
[Site "Chess.com"]
[Date "2020.05.05"]
[Round "1"]
[White "MathiasWomacka"]
[Black "Shield12"]
[Result "0-1"]
[WhiteElo "2427"]
[BlackElo "2825"]
[TimeControl "180+1"]
[EndTime "10:03:45 PDT"]
[Termination "Shield12 won by resignation"]

1. e4 {[%clk 0:02:55.3]} 1... e5 {[%clk 0:02:59.5]} 2. Nf3 {[%clk 0:02:54.9]}
2... Nc6 {[%clk 0:02:59.8]} 3. Bc4 {[%clk 0:02:54.6]} 3... Bc5 {[%clk
0:02:59.3]} 4. O-O {[%clk 0:02:53.7]} 4... Nf6 {[%clk 0:02:59.4]} 5. d3 {[%clk
0:02:53.9]} 5... d6 {[%clk 0:02:59]} 6. c3 {[%clk 0:02:53.3]} 6... a6 {[%clk
0:02:59.1]} 7. d4 {[%clk 0:02:43.1]} 7... Ba7 {[%clk 0:02:58.7]} 8. dxe5 {[%clk
0:02:43.1]} 8... Nxe5 {[%clk 0:02:58.9]} 9. Nxe5 {[%clk 0:02:43.2]} 9... dxe5
{[%clk 0:02:59.8]} 10. Qxd8+ {[%clk 0:02:42.9]} 10... Kxd8 {[%clk 0:03:00.7]}
11. Re1 {[%clk 0:02:35.7]} 11... Ke7 {[%clk 0:02:55]} 12. Nd2 {[%clk 0:02:25.3]}
12... b5 {[%clk 0:02:52.8]} 13. Bb3 {[%clk 0:02:24.4]} 13... Bb7 {[%clk
0:02:51.4]} 14. h3 {[%clk 0:02:16.8]} 14... Rad8 {[%clk 0:02:49.2]} 15. Nf3
{[%clk 0:02:16.6]} 15... Nxe4 {[%clk 0:02:46.4]} 16. Be3 {[%clk 0:02:16.6]}
16... Bxe3 {[%clk 0:02:45.1]} 17. Rxe3 {[%clk 0:02:17.5]} 17... f6 {[%clk
0:02:45.5]} 18. a4 {[%clk 0:02:12]} 18... Nc5 {[%clk 0:02:38.6]} 19. Bc2 {[%clk
0:02:08.3]} 19... Bxf3 {[%clk 0:02:36.7]} 20. Rxf3 {[%clk 0:02:05.2]} 20... Rd2
{[%clk 0:02:36.6]} 21. Rc1 {[%clk 0:02:04.3]} 21... bxa4 {[%clk 0:02:35.3]} 22.
Kf1 {[%clk 0:01:58.8]} 22... Rb8 {[%clk 0:02:24.2]} 23. Ke1 {[%clk 0:01:58]}
23... Rd6 {[%clk 0:02:24.2]} 24. Bxh7 {[%clk 0:01:42.9]} 24... Rxb2 {[%clk
0:02:22.4]} 25. Rg3 {[%clk 0:01:42.9]} 25... Kf8 {[%clk 0:02:19.7]} 26. c4
{[%clk 0:01:37.5]} 26... Rdd2 {[%clk 0:02:11.2]} 27. Rb1 {[%clk 0:01:32.1]}
27... Re2+ {[%clk 0:02:07.8]} 28. Kd1 {[%clk 0:01:30.9]} 28... Rbd2+ {[%clk
0:02:05.5]} 0-1

[Event "*** Titled Tuesday Blitz"]
[Site "Chess.com"]
[Date "2020.05.05"]
[Round "1"]
[White "CHENNAIBOND"]
[Black "Kildepiotr"]
[Result "0-1"]
[WhiteElo "1215"]
[BlackElo "2472"]
[TimeControl "180+1"]
[EndTime "10:03:47 PDT"]
[Termination "Kildepiotr won by resignation"]

1. e4 {[%clk 0:03:00.9]} 1... g6 {[%clk 0:02:59.3]} 2. d4 {[%clk 0:03:00.7]}
2... Bg7 {[%clk 0:02:59.7]} 3. Nc3 {[%clk 0:02:51.4]} 3... c6 {[%clk 0:02:59.3]}
4. Nf3 {[%clk 0:02:47.6]} 4... d6 {[%clk 0:02:59.1]} 5. Bc4 {[%clk 0:02:46.6]}
5... Nf6 {[%clk 0:02:57.2]} 6. O-O {[%clk 0:02:39.6]} 6... b5 {[%clk 0:02:45.4]}
7. Bd3 {[%clk 0:02:33.3]} 7... O-O {[%clk 0:02:41.6]} 8. Re1 {[%clk 0:02:31.3]}
8... b4 {[%clk 0:02:34.3]} 9. Ne2 {[%clk 0:02:30.1]} 9... Nbd7 {[%clk
0:02:32.4]} 10. e5 {[%clk 0:02:19.2]} 10... Nd5 {[%clk 0:02:28.3]} 11. Nf4
{[%clk 0:02:13.9]} 11... dxe5 {[%clk 0:02:26.6]} 12. dxe5 {[%clk 0:02:12.3]}
12... Nc5 {[%clk 0:02:21.6]} 13. Bc4 {[%clk 0:01:57.5]} 13... Nb6 {[%clk
0:02:17.9]} 14. Bf1 {[%clk 0:01:37.5]} 14... Qxd1 {[%clk 0:02:15.1]} 15. Rxd1
{[%clk 0:01:37.3]} 15... Bg4 {[%clk 0:02:15.1]} 16. Be3 {[%clk 0:01:27.3]} 16...
Nca4 {[%clk 0:02:04.5]} 17. e6 {[%clk 0:00:57.2]} 0-1

[Event "*** Titled Tuesday Blitz"]
[Site "Chess.com"]
[Date "2020.05.05"]
[Round "1"]
[White "Grandelicious"]
[Black "Agnes66678"]
[Result "1-0"]
[WhiteElo "2771"]
[BlackElo "2399"]
[TimeControl "180+1"]
[EndTime "10:04:07 PDT"]
[Termination "Grandelicious won by resignation"]

1. e4 {[%clk 0:02:59.6]} 1... d6 {[%clk 0:02:59.1]} 2. d4 {[%clk 0:02:58.5]}
2... Nf6 {[%clk 0:02:58.1]} 3. Nc3 {[%clk 0:02:59]} 3... e5 {[%clk 0:02:57.5]}
4. Nge2 {[%clk 0:02:55.6]} 4... Be7 {[%clk 0:02:56.5]} 5. h3 {[%clk 0:02:55.4]}
5... O-O {[%clk 0:02:56.4]} 6. g4 {[%clk 0:02:54.5]} 6... c6 {[%clk 0:02:54.9]}
7. Bg2 {[%clk 0:02:54.2]} 7... b5 {[%clk 0:02:54.3]} 8. a3 {[%clk 0:02:50.4]}
8... Nbd7 {[%clk 0:02:51.8]} 9. O-O {[%clk 0:02:48.7]} 9... a5 {[%clk
0:02:50.8]} 10. Be3 {[%clk 0:02:46.9]} 10... Rb8 {[%clk 0:02:49.8]} 11. Ng3
{[%clk 0:02:46.5]} 11... b4 {[%clk 0:02:26.5]} 12. axb4 {[%clk 0:02:47.4]} 12...
axb4 {[%clk 0:02:27.4]} 13. Nce2 {[%clk 0:02:47.4]} 13... exd4 {[%clk
0:02:21.8]} 14. Nxd4 {[%clk 0:02:45.1]} 14... Qc7 {[%clk 0:02:18.8]} 15. Ngf5
{[%clk 0:02:25.6]} 15... Ne5 {[%clk 0:02:14]} 16. b3 {[%clk 0:02:20.4]} 16... c5
{[%clk 0:02:03.6]} 17. Nxe7+ {[%clk 0:02:19.7]} 17... Qxe7 {[%clk 0:02:04.5]}
18. Nf5 {[%clk 0:02:20.6]} 18... Bxf5 {[%clk 0:02:03.7]} 19. exf5 {[%clk
0:02:21.5]} 19... d5 {[%clk 0:01:59.1]} 20. g5 {[%clk 0:02:06.8]} 20... Ne4
{[%clk 0:01:57]} 21. Qxd5 {[%clk 0:02:06]} 21... Nc3 {[%clk 0:01:55.5]} 22. Qxc5
{[%clk 0:02:03.7]} 22... Qxc5 {[%clk 0:01:45.4]} 23. Bxc5 {[%clk 0:02:04.6]}
23... Rfe8 {[%clk 0:01:42.8]} 24. Rfe1 {[%clk 0:01:55.6]} 24... f6 {[%clk
0:01:35.1]} 25. f4 {[%clk 0:01:52.4]} 25... Nd7 {[%clk 0:01:32.1]} 26. Bd6
{[%clk 0:01:48.9]} 26... Rxe1+ {[%clk 0:01:29.1]} 27. Rxe1 {[%clk 0:01:49.8]}
27... Rb6 {[%clk 0:01:25.7]} 28. Re8+ {[%clk 0:01:48.4]} 28... Kf7 {[%clk
0:01:25.5]} 29. Re7+ {[%clk 0:01:48.7]} 29... Kg8 {[%clk 0:01:25]} 30. Rxd7
{[%clk 0:01:49]} 1-0

[Event "*** Titled Tuesday Blitz"]
[Site "Chess.com"]
[Date "2020.05.05"]
[Round "1"]
[White "827883"]
[Black "Balla_Tamas"]
[Result "0-1"]
[WhiteElo "2213"]
[BlackElo "2557"]
[TimeControl "180+1"]
[EndTime "10:04:23 PDT"]
[Termination "Balla_Tamas won by resignation"]

1. e4 {[%clk 0:02:56.8]} 1... c5 {[%clk 0:02:58.5]} 2. Nf3 {[%clk 0:02:56.8]}
2... e6 {[%clk 0:02:57.8]} 3. d4 {[%clk 0:02:56.9]} 3... cxd4 {[%clk 0:02:57.5]}
4. Nxd4 {[%clk 0:02:57.8]} 4... a6 {[%clk 0:02:57.9]} 5. Nc3 {[%clk 0:02:58.1]}
5... Qc7 {[%clk 0:02:57]} 6. g3 {[%clk 0:02:58.3]} 6... Bb4 {[%clk 0:02:55.5]}
7. Bd2 {[%clk 0:02:55.2]} 7... Nf6 {[%clk 0:02:54.2]} 8. Bg2 {[%clk 0:02:55.2]}
8... Nc6 {[%clk 0:02:52.1]} 9. Nde2 {[%clk 0:02:41.1]} 9... Be7 {[%clk
0:02:50.8]} 10. O-O {[%clk 0:02:40.9]} 10... d6 {[%clk 0:02:50.9]} 11. a4 {[%clk
0:02:35.6]} 11... b6 {[%clk 0:02:50.4]} 12. Re1 {[%clk 0:02:31.6]} 12... Bb7
{[%clk 0:02:50.3]} 13. h3 {[%clk 0:02:19.3]} 13... Ne5 {[%clk 0:02:44.7]} 14. b3
{[%clk 0:01:59]} 14... O-O {[%clk 0:02:34.7]} 15. f4 {[%clk 0:01:57]} 15... Qc5+
{[%clk 0:02:31.4]} 16. Kh2 {[%clk 0:01:51.7]} 16... Neg4+ {[%clk 0:02:26.2]} 17.
hxg4 {[%clk 0:01:48.1]} 17... Nxg4+ {[%clk 0:02:25.1]} 18. Kh1 {[%clk
0:01:47.1]} 18... Nf2+ {[%clk 0:02:23.7]} 19. Kh2 {[%clk 0:01:47]} 19... Nxd1
{[%clk 0:02:23.5]} 20. Raxd1 {[%clk 0:01:47.2]} 20... Rac8 {[%clk 0:02:16.8]}
21. Bc1 {[%clk 0:01:20.6]} 21... b5 {[%clk 0:02:07.1]} 22. axb5 {[%clk
0:01:19.2]} 22... axb5 {[%clk 0:02:06.5]} 23. Rd2 {[%clk 0:01:11.3]} 23... Rc7
{[%clk 0:01:58.9]} 24. Red1 {[%clk 0:01:10.2]} 24... Bf6 {[%clk 0:01:50]} 25.
Nb1 {[%clk 0:01:07.1]} 25... b4 {[%clk 0:01:47.1]} 26. Rxd6 {[%clk 0:01:02.4]}
26... Qxc2 {[%clk 0:01:45.6]} 0-1